fUSD/lending_fUSD_20240122
["ID","MTS","AMOUNT","RATE_DAILY","PERIOD"]
[312485680,1705920644139,-16399.39173314,0.000376,10]
[312485681,1705920644150,-8603.6,0.000376,10]
[312485682,1705920644175,-418.78,0.0003663,2]
[312485683,1705920644184,-653.35842298,0.000376,10]
[312485684,1705920644195,-4908.96150335,0.000376,10]
[312485686,1705920644207,-15892.72762953,0.000376,10]
[312485687,1705920644216,-1000.0,0.000376,7]
[312485688,1705920644225,-1659.75404625,0.00037748,10]
[312485693,1705920646256,-1220.77029754,0.00037748,10]
[312485694,1705920646419,-221.15744731,0.00037229,4]
[312485695,1705920646430,-500.0,0.00037229,2]
[312485696,1705920646441,-588.15472554,0.00037748,10]
[312485697,1705920647300,-941.33844975,0.00037748,10]
[312485698,1705920647357,-1397.23739205,0.00037748,10]
[312485699,1705920647367,-1295.21658724,0.00037758,5]
[312485700,1705920647422,-490.33341276,0.00037758,5]
[312485701,1705920647432,-172.36,0.0003778,2]
[312485702,1705920647441,-2000.0,0.000378,4]
[312485703,1705920647450,-500.0,0.000378,13]
[312485704,1705920647460,-848.87826377,0.00037806,2]
[312485705,1705920647470,-335.34184588,0.00037806,10]
[312485706,1705920647479,-439.88191235,0.00037806,2]
[312485708,1705920647491,-331.66831705,0.00037806,2]
[312485710,1705920647500,-150.01,0.00037807,2]
[312485712,1705920647509,-231.60168297,0.00037807,2]
[312485714,1705920647520,-1009.79440862,0.00037807,2]
[312485715,1705920647531,-2029.5,0.00037807,2]
[312485716,1705920647543,-27.89866658,0.00037807,2]
[312485717,1705920647553,-1159.95113342,0.0003789,10]
[312485718,1705920655417,5937.54888629,0.00027397,2]
[312485719,1705920671109,14334.41220479,0.0002249,5]
[312485720,1705920720532,900.0,0.000155,2]
[312485721,1705920720559,3352.19796977,0.000155,2]
[312485722,1705920720583,1968.39168034,0.000155,2]
[312485723,1705920724476,603.72160109,0.0002,2]
[312485725,1705920745940,780.08468834,0.00015,2]
[312485726,1705920745970,1102.49681311,0.00015,2]
[312485727,1705920816687,2181.93556743,0.0002,2]
[312485730,1705920882737,-161.90565138,0.0002203,2]
[312485731,1705920882764,-138.09434862,0.00022031,2]
[312485732,1705920911138,67.76558923,0.00021917,2]
[312485733,1705920911161,128.73530977,0.00021917,2]
[312485737,1705921088039,215.26262203,0.00022009,2]
[312485738,1705921089217,155.0,0.00022009,2]
[312485739,1705921094049,1418.26758153,0.00022009,2]
[312485740,1705921096412,1434.93245644,0.00022009,2]
[312485741,1705921096436,1757.93960573,0.00022009,2]
[312485742,1705921101466,495.03511247,0.00022009,2]
[312485743,1705921112366,1099.22325157,0.00021588,2]
[312485744,1705921112389,2093.6488106,0.00021588,2]
[312485745,1705921122475,191.04557841,0.00022009,2]
[312485746,1705921123652,759.56227356,0.00022009,2]
[312485747,1705921127316,307.9413072,0.00022008,2]
[312485748,1705921127339,139.8920882,0.00022008,2]
[312485749,1705921129967,597.0,0.00022009,2]
[312485750,1705921130196,731.43450475,0.00022009,2]
[312485751,1705921130519,161.90565138,0.00022009,2]
[312485752,1705921133197,155.0,0.00022009,2]
[312485753,1705921133249,519.52,0.00020868,2]
[312485754,1705921135270,242.67080697,0.00022009,2]
[312485755,1705921136131,804.77491847,0.00022009,2]
[312485756,1705921136155,1336.24296746,0.00022009,2]
[312485757,1705921136773,161.80307959,0.00022009,2]
[312485758,1705921141971,191.04557841,0.00022009,2]
[312485759,1705921142140,759.56227356,0.00022009,2]
[312485760,1705921144512,162.10850407,0.00022009,2]
[312485761,1705921145320,447.8333954,0.00019588,2]
[312485762,1705921146215,293.60217128,0.00021,2]
[312485763,1705921146237,306.1297274,0.00021,2]
[312485764,1705921147236,156.54147581,0.00022009,2]
[312485765,1705921150780,161.80307959,0.00019808,2]
[312485766,1705921151273,242.49805493,0.00022009,2]
[312485767,1705921152116,161.32673188,0.00021914,2]
[312485768,1705921154744,2139.50181099,0.00022009,2]
[312485769,1705921155731,155.0,0.00022009,2]
[312485770,1705921158146,29.39708917,0.00022009,2]
[312485771,1705921158170,590.67162958,0.00022009,2]
[312485772,1705921162522,215.26262203,0.00022009,2]
[312485773,1705921165664,447.8333954,0.00020014,2]
[312485774,1705921166788,161.80307959,0.00019808,2]
[312485775,1705921176326,155.35346228,0.00022009,2]
[312485776,1705921176540,215.26262203,0.00022009,2]
[312485777,1705921182790,161.80307959,0.00019808,2]
[312485778,1705921187357,447.15339084,0.00019588,2]
[312485779,1705921200788,161.48133354,0.0001982,2]
[312485780,1705921234342,219.90355198,0.00021024,2]
[312485781,1705921266213,250.0,0.00021991,2]
[312485782,1705921284499,191.93755664,0.000303,100]
[312485784,1705921295047,325.66980291,0.0002185,2]
[312485785,1705921295073,177.18019709,0.0002185,2]
[312485786,1705921311283,1530.13924492,0.00022,2]
[312485787,1705921340716,1644.87852776,0.000219,2]
[312485788,1705921340742,355.12147224,0.000219,2]
[312485789,1705921346487,500.0,0.000219,2]
[312485790,1705921356262,1854.96,0.00021871,2]
[312485791,1705921424629,181.4,0.0002184,10]
[312485792,1705921443284,457.39,0.0002184,2]
[312485793,1705921562883,3.32649753,0.00021914,2]
[312485794,1705921562906,746.67350247,0.00021914,2]
[312485795,1705921574399,2605.5244673,0.00021914,2]
[312485796,1705921574422,3352.19796977,0.00021914,2]
[312485797,1705921574446,3352.19796977,0.00021914,2]
[312485798,1705921574470,3352.19796977,0.00021914,2]
[312485799,1705921574494,3352.19796977,0.00021914,2]
[312485800,1705921574518,3352.19796977,0.00021914,2]
[312485801,1705921574541,3352.19796977,0.00021914,2]
[312485802,1705921574563,1181.28771408,0.00021914,2]
[312485803,1705921579914,200.0,0.00021887,2]
[312485804,1705921596296,493.54,0.00020025,2]
[312485805,1705921653600,158.68,0.00021933,2]
[312485806,1705921694481,498.92,0.00021727,2]
[312485807,1705921732093,185.88314294,0.00021714,2]
[312485808,1705921755792,250.0,0.0002181,2]
[312485809,1705921774908,383.88711275,0.00021905,2]
[312485810,1705921774932,1616.11288725,0.00021905,2]
[312485811,1705921784303,484.51,0.00021953,2]
[312485812,1705921791140,500.0,0.00021909,2]
[312485835,1705921834356,-463.04584173,0.00022012,2]
[312485836,1705921834366,-231.73898554,0.00022012,2]
[312485837,1705921834377,-300.0,0.00022013,2]
[312485838,1705921834387,-150.0,0.0002202,2]
[312485839,1705921834397,-1132.91517273,0.00022021,2]
[312485840,1705921834413,-753.76685408,0.00022021,2]
[312485841,1705921834430,-5695.86001743,0.00022021,2]
[312485842,1705921834487,-567.0516138,0.00022021,2]
[312485843,1705921834500,-1845.0,0.00022021,2]
[312485844,1705921834512,-2851.05149853,0.00022021,2]
[312485845,1705921834522,-362.38050012,0.00022021,2]
[312485846,1705921834532,-8394.36060994,0.00022021,2]
[312485847,1705921834544,-250.0,0.00022021,2]
[312485848,1705921834606,-3160.67274254,0.00022021,2]
[312485849,1705921834619,-576.32490571,0.00022021,2]
[312485850,1705921834632,-399.2023011,0.00022021,2]
[312485851,1705921834644,-558.52308031,0.00022021,2]
[312485852,1705921834657,-2574.04524832,0.00022021,2]
[312485864,1705921834837,-1100.0,0.00022021,2]
[312485928,1705921838361,-30356.76278156,0.00022021,2]
[312485929,1705921838373,-155.0,0.00022022,2]
[312485930,1705921838627,-1557.06206998,0.00022022,2]
[312485931,1705921838654,-199.25,0.00022068,2]
[312485932,1705921838664,-780.54,0.00022099,2]
[312485933,1705921838673,-4154.50907867,0.00022262,2]
[312485934,1705921838683,-499.99,0.00022262,2]
[312485935,1705921838692,-150.99,0.00022262,2]
[312485936,1705921838702,-280.79430241,0.00022263,2]
[312485937,1705921838711,-494.06742775,0.00022263,2]
[312485938,1705921838721,-4175.15,0.00022263,2]
[312485940,1705921838730,-752.26,0.00022263,2]
[312485942,1705921838740,-299.99,0.00022263,7]
[312485944,1705921838749,-493.54,0.00022288,2]
[312485946,1705921838759,-163.39,0.00022373,2]
[312485948,1705921838768,-215.48725571,0.00022466,2]
[312485950,1705921838777,-289.33423861,0.00022488,2]
[312485952,1705921838786,-532.70995754,0.00022488,2]
[312485954,1705921838796,-2035.74402954,0.00022488,2]
[312485956,1705921838805,-213.48085152,0.00022488,2]
[312485958,1705921838816,-2327.18492781,0.00022488,2]
[312485960,1705921838825,-1312.40756005,0.00022488,2]
[312485962,1705921838835,-190.83842937,0.00022488,2]
[312485964,1705921838845,-215.61134152,0.00022488,2]
[312485966,1705921838854,-4695.32009176,0.00022489,2]
[312485968,1705921838864,-244647.60867968,0.0002249,5]
[312485970,1705921838874,-10683.86466397,0.0002249,2]
[312485972,1705921838884,-478.90161544,0.000225,2]
[312485974,1705921838893,-158.68,0.00022505,2]
[312485976,1705921838902,-377.16,0.00022531,2]
[312485978,1705921838912,-468.43092977,0.000227,2]
[312485980,1705921838922,-5386.51,0.0002274,2]
[312485982,1705921838931,-780.54,0.00022917,2]
[312485984,1705921838941,-158.68,0.00023076,2]
[312485987,1705921838952,-607.87,0.00023407,2]
[312485988,1705921838961,-484.51,0.00023597,2]
[312485991,1705921838971,-780.54,0.00023735,2]
[312485992,1705921838981,-1466.26341923,0.00024,2]
[312485994,1705921838991,-210.0,0.00024222,2]
[312485996,1705921839001,-161.32673181,0.00024341,2]
[312485998,1705921839010,-493.54,0.00024552,2]
[312486000,1705921839020,-780.54,0.00024552,2]
[312486002,1705921839029,-457.39,0.0002457,2]
[312486004,1705921839038,-250.0,0.00024658,2]
[312486006,1705921839049,-200.0,0.00025,2]
[312486009,1705921839063,-511.92280892,0.00025,2]
[312486011,1705921839073,-350.0,0.00025,3]
[312486013,1705921839083,-259.93348509,0.00025,2]
[312486015,1705921839092,-774.04824486,0.00025,2]
[312486017,1705921839101,-1584.56156338,0.00025,2]
[312486019,1705921839111,-201.79352657,0.00025,2]
[312486021,1705921839121,-484.51,0.00025241,2]
[312486023,1705921839131,-780.54,0.0002537,2]
[312486025,1705921839140,-199.25,0.00026219,2]
[312486027,1705921839149,-607.87,0.00026333,2]
[312486029,1705921839159,-848.71,0.00026575,2]
[312486031,1705921839168,-649.52,0.00026575,2]
[312486033,1705921839178,-161.32673181,0.00026767,2]
[312486035,1705921839187,-493.54,0.00026816,2]
[312486037,1705921839196,-484.51,0.00026884,2]
[312486039,1705921839206,-167.9,0.00027063,2]
[312486041,1705921839216,-457.39,0.000273,2]
[312486043,1705921839227,-155.88,0.00027397,2]
[312486045,1705921839236,-484.51,0.00028528,2]
[312486047,1705921839245,-155.88,0.00028767,2]
[312486049,1705921839254,-167.9,0.00028867,2]
[312486051,1705921839264,-493.54,0.0002908,2]
[312486053,1705921839274,-161.32673181,0.00029194,2]
[312486055,1705921839284,-607.87,0.00029259,2]
[312486057,1705921839297,-6356.76833902,0.0002998,2]
[312486059,1705921839306,-155.0,0.0003,2]
[312486061,1705921839316,-457.39,0.0003003,2]
[312486063,1705921839326,-155.88,0.00030137,2]
[312486065,1705921839335,-484.51,0.00030172,2]
[312486067,1705921839344,-498.92,0.00030418,2]
[312486069,1705921839354,-167.9,0.00030671,2]
[312486071,1705921839366,-493.54,0.00031344,2]
[312486073,1705921839376,-155.88,0.00031507,2]
[312486076,1705921839387,-161.32673181,0.0003162,2]
[312486078,1705921839396,-607.87,0.00032185,2]
[312486080,1705921839406,-167.9,0.00032475,2]
[312486082,1705921839415,-457.39,0.0003276,2]
[312486084,1705921839424,-155.88,0.00032877,2]
[312486086,1705921839434,-156.06,0.00032877,15]
[312486088,1705921839443,-1000.0,0.00033239,7]
[312486090,1705921839452,-1000.0,0.00033537,7]
[312486092,1705921839462,-155.31624059,0.00033581,4]
[312486094,1705921839471,-493.54,0.00033608,2]
[312486096,1705921839481,-500.0,0.00034,2]
[312486098,1705921839490,-1000.0,0.00034,4]
[312486100,1705921839499,-161.32673181,0.00034047,2]
[312486102,1705921839509,-205.0,0.00034048,2]
[312486104,1705921839518,-205.0,0.00034048,2]
[312486106,1705921839527,-155.88,0.00034247,2]
[312486108,1705921839537,-283.6975259,0.00034971,4]
[312486110,1705921839547,-1897.75273507,0.00034971,4]
[312486112,1705921839556,-607.87,0.00035111,2]
[312486114,1705921839568,-1000.0,0.00035116,7]
[312486116,1705921839578,-157.7549911,0.00035116,6]
[312486118,1705921839588,-356.62716641,0.00035116,6]
[312486120,1705921839597,-228.86397196,0.00035116,6]
[312486122,1705921839607,-283.39998215,0.00035116,6]
[312486124,1705921839616,-280.01413502,0.00035116,6]
[312486126,1705921839626,-155.88,0.00035616,2]
[312486128,1705921839635,-170.0,0.00035692,2]
[312486130,1705921839644,-493.54,0.00035872,2]
[312486132,1705921839653,-1102.32059014,0.00035999,10]
[312486134,1705921839663,-2043.88,0.00036165,2]
[312486136,1705921839672,-2043.88,0.00036165,2]
[312486138,1705921839681,-2043.88,0.00036165,2]
[312486140,1705921839691,-2043.88,0.00036165,2]
[312486142,1705921839700,-2043.88,0.00036165,2]
[312486144,1705921839709,-2043.88,0.00036165,2]
[312486146,1705921839719,-2043.88,0.00036165,2]
[312486148,1705921839727,-2043.88,0.00036165,2]
[312486150,1705921839737,-2043.88,0.00036165,2]
[312486152,1705921839747,-2043.88,0.00036165,2]
[312486154,1705921839756,-101605.0,0.00036166,2]
[312486156,1705921839766,-1934.0,0.00036183,2]
[312486159,1705921839775,-319.0,0.00036183,2]
[312486161,1705921839785,-2904.0,0.00036401,2]
[312486162,1705921839794,-5578.0,0.00036401,2]
[312486165,1705921839803,-4175.0,0.00036401,2]
[312486166,1705921839815,-8097.0,0.00036401,2]
[312486169,1705921839824,-2272.0,0.00036401,2]
[312486170,1705921839834,-7353.0,0.00036401,2]
[312486172,1705921839843,-19705.0,0.00036401,2]
[312486175,1705921839853,-1029.0,0.00036401,2]
[312486177,1705921839862,-161.32673181,0.00036473,2]
[312486179,1705921839872,-835.0,0.00036501,2]
[312486181,1705921839881,-1234.0,0.00036501,2]
[312486183,1705921839891,-1257.0,0.00036501,2]
[312486185,1705921839901,-500.0,0.000368,13]
[312486187,1705921839911,-179.39,0.00036807,2]
[312486189,1705921839922,-152.98822472,0.00036839,2]
[312486190,1705921839932,-1174.0,0.000369,5]
[312486191,1705921839942,-778123.913783,0.000369,5]
[312486192,1705921839951,-1100.0,0.000369,13]
[312486193,1705921839961,-621.04072143,0.000369,2]
[312486194,1705921839971,-155.0,0.00036939,4]
[312486195,1705921839981,-4907.48280639,0.00036939,3]
[312486196,1705921839990,-155.88,0.00036986,2]
[312486197,1705921840000,-3027.0,0.00037,2]
[312486198,1705921840009,-669.01240215,0.00037,7]
[312486199,1705921840019,-30324.0,0.000372,2]
[312486200,1705921840028,-5388.41064832,0.00037303,10]
[312486201,1705921840038,-155.35341552,0.00037312,4]
[312486203,1705921840048,-870.18670608,0.00037312,2]
[312486205,1705921840057,-196.82515123,0.00037312,4]
[312486207,1705921840069,-155.1420043,0.00037312,4]
[312486210,1705921840078,-2903.08663668,0.00037312,4]
[312486212,1705921840088,-155.0,0.00037312,4]
[312486215,1705921840097,-314.41237187,0.00037312,4]
[312486218,1705921840108,-344.52203941,0.00037312,4]
[312486221,1705921840118,-234.12299414,0.00037312,4]
[312486225,1705921840127,-940.96622262,0.00037312,4]
[312486227,1705921840137,-155.0,0.00037313,4]
[312486230,1705921840147,-2327.6667133,0.00037313,4]
[312486232,1705921840156,-3124.57472535,0.00037313,10]
[312486234,1705921840166,-6878.02932478,0.00037338,30]
[312486236,1705921840175,-328.383179,0.00037338,30]
[312486238,1705921840185,-13190.0,0.00037338,120]
[312486240,1705921840194,-204.95569,0.0003743,2]
[312486242,1705921840204,-150.0,0.00037543,2]
[312486244,1705921840213,-1500.0,0.00037544,2]
[312486246,1705921840223,-1500.0,0.00037566,2]
[312486248,1705921840232,-1027.0,0.000376,7]
[312486250,1705921840242,-150.0,0.00037635,2]
[312486251,1705921840251,-150.0,0.00037682,2]
[312486252,1705921840261,-155.35546597,0.00037709,4]
[312486253,1705921840270,-150.0,0.0003777,2]
[312486254,1705921840280,-5388.41064832,0.0003779,10]
[312486255,1705921840291,-1000.0,0.000378,7]
[312486256,1705921840303,-1700.0,0.000378,13]
[312486257,1705921840314,-212.395395,0.000378,2]
[312486258,1705921840323,-2583.70126062,0.000378,2]
[312486259,1705921840332,-364.22141274,0.00037806,4]
[312486260,1705921840342,-150.01,0.00037807,2]
[312486261,1705921840352,-3298.79475817,0.00037807,2]
[312486262,1705921840361,-848.71,0.00037808,2]
[312486263,1705921840371,-649.52,0.00037808,2]
[312486264,1705921840381,-150.0,0.00037854,2]
[312486265,1705921840391,-535.16997211,0.0003786,2]
[312486266,1705921840400,-195.00618662,0.0003786,7]
[312486267,1705921840409,-5388.41064832,0.0003787,10]
[312486268,1705921840419,-5388.41064832,0.00037878,10]
[312486269,1705921840429,-32330.4638899,0.0003788,10]
[312486270,1705921840439,-10776.8212966,0.00037888,10]
[312486271,1705921840449,-5388.41064832,0.00037889,10]
[312486272,1705921840458,-64660.9277798,0.0003789,10]
[312486273,1705921840467,-263.0,0.0003789,3]
[312486274,1705921840477,-382.00303627,0.00037898,4]
[312486275,1705921840487,-457.43494731,0.00037898,4]
[312486276,1705921840497,-197.02284836,0.00037898,4]
[312486277,1705921840507,-155.39264598,0.00037898,4]
[312486278,1705921840516,-1041.72732894,0.00037898,4]
[312486279,1705921840526,-155.0,0.00037898,4]
[312486280,1705921840536,-1709.96186533,0.00037898,4]
[312486281,1705921840545,-1064.42182322,0.00037898,4]
[312486282,1705921840555,-17143.90473206,0.00037898,4]
[312486283,1705921840564,-310.0,0.00037898,4]
[312486284,1705921840574,-161.23008415,0.00037898,4]
[312486285,1705921840584,-155.31832606,0.00037898,4]
[312486286,1705921840593,-317.72933048,0.00037898,4]
[312486287,1705921840603,-324.54710086,0.00037898,4]
[312486288,1705921840613,-473.45584329,0.00037898,4]
[312486289,1705921840622,-441.02272604,0.00037898,4]
[312486290,1705921840632,-584.14979696,0.00037898,4]
[312486291,1705921840641,-253.8914522,0.00037899,4]
[312486292,1705921840650,-1204.08066504,0.00037899,4]
[312486293,1705921840660,-3031.20814747,0.00037899,4]
[312486295,1705921840670,-4366.55883829,0.00037899,4]
[312486297,1705921840679,-155.4332334,0.000379,4]
[312486299,1705921840688,-22763.86397861,0.000379,11]
[312486300,1705921840698,-2300.0,0.000379,13]
[312486301,1705921840708,-319.44,0.000379,30]
[312486302,1705921840717,-104555.940915,0.000379,2]
[312486304,1705921840727,-319.44,0.000379,2]
[312486306,1705921840737,-5000.0,0.0003796,3]
[312486308,1705921840746,-17210.97284628,0.00037969,10]
[312486311,1705921840769,-638.89389986,0.00037969,10]
[312486314,1705921840790,-1335.6738995,0.00037969,10]
[312486315,1705921840802,-1545.65765253,0.00037969,10]
[312486316,1705921840833,-2238.9233072,0.00037969,10]
[312486317,1705921840844,-1704.77468899,0.00037969,10]
[312486318,1705921840861,-683.50316624,0.00037969,10]
[312486319,1705921840873,-2876.05948541,0.00037969,10]
[312486320,1705921840886,-2103.3787534,0.00037969,10]
[312486321,1705921840897,-5526.79899782,0.00037969,10]
[312486322,1705921840909,-979.31412629,0.00037969,10]
[312486331,1705921842823,-442.31201593,0.000368,3]
[312486332,1705921842990,-4557.68798407,0.000368,3]
[312486333,1705921843000,-768.11923596,0.000378,2]
[312486334,1705921843009,-37318.93979388,0.00037969,10]
[312486335,1705921843021,-1274.8584591,0.00037969,10]
[312486337,1705921843030,-104555.940915,0.00037969,2]
[312486339,1705921843040,-21553.6425933,0.0003798,10]
[312486340,1705921843049,-278.0,0.0003799,3]
[312486341,1705921843058,-95671.6340068,0.00037999,7]
[312486357,1705921843716,-3303.47991168,0.00037999,7]
[312486358,1705921843904,-320.8761962,0.00037999,7]
[312486365,1705921858912,235.06304054,0.00021909,2]
[312486366,1705921869262,250.89843054,0.00021909,2]
[312486367,1705921929667,235.06304054,0.00021909,2]
[312486368,1705921953665,30.5505709,0.00021909,2]
[312486369,1705921953688,204.51246964,0.00021909,2]
[312486370,1705921971660,235.1422538,0.00021909,2]
[312486371,1705922044856,512.56,0.000302,120]
[312486373,1705922628761,697.08,0.0002201,2]
[312486380,1705923031524,-350.0,0.00025,3]
[312486381,1705923031535,-400.0,0.00027,3]
[312486382,1705923031544,-69.94,0.000271,2]
[312486383,1705923031555,-404.06607165,0.000271,2]
[312486384,1705923031565,-160.23,0.00027397,2]
[312486385,1705923031575,-164.16,0.00027397,2]
[312486386,1705923031584,-160.23,0.00027974,2]
[312486387,1705923031594,-2591.5077,0.00028451,2]
[312486388,1705923031605,-160.23,0.00028551,2]
[312486389,1705923031614,-450.0,0.00029,3]
[312486390,1705923031623,-160.23,0.00029128,2]
[312486391,1705923031632,-160.23,0.00029704,2]
[312486392,1705923031643,-155.0,0.00030199,2]
[312486393,1705923031654,-155.0,0.000302,4]
[312486394,1705923031664,-838.43476686,0.000302,2]
[312486395,1705923031674,-160.23,0.00030281,2]
[312486396,1705923031684,-160.23,0.00030858,2]
[312486397,1705923031694,-160.23,0.00031435,2]
[312486398,1705923031703,-160.23,0.00032012,2]
[312486399,1705923031714,-399.31,0.00032344,2]
[312486400,1705923031724,-3124.57472535,0.00032578,10]
[312486401,1705923031734,-160.23,0.00032588,2]
[312486402,1705923031744,-160.23,0.00033165,2]
[312486403,1705923031752,-160.23,0.00033742,2]
[312486404,1705923031762,-1000.0,0.00034304,4]
[312486405,1705923031772,-500.0,0.00034305,2]
[312486406,1705923031781,-156.06,0.00034306,15]
[312486407,1705923031790,-160.23,0.00034319,2]
[312486408,1705923031799,-200.02,0.00034344,2]
[312486409,1705923031809,-250.0,0.00034348,2]
[312486410,1705923031818,-205.0,0.00034373,2]
[312486411,1705923031826,-241.33,0.00034421,2]
[312486412,1705923031836,-177.06,0.00034427,2]
[312486413,1705923031846,-2509.0,0.00034456,2]
[312486414,1705923031855,-2000.0,0.00034471,2]
[312486415,1705923031865,-3306.28747403,0.00034497,4]
[312486417,1705923031875,-3885.9960804,0.000345,15]
[312486419,1705923031883,-13715.87,0.00034573,2]
[312486421,1705923031892,-399.31,0.00034608,2]
[312486423,1705923031901,-250.0,0.00034637,2]
[312486425,1705923031911,-682.78,0.00034668,2]
[312486427,1705923031920,-179.39,0.00034801,2]
[312486429,1705923031929,-160.23,0.00034896,2]
[312486431,1705923031938,-1038.728264,0.0003499,2]
[312486433,1705923031953,-735.43214998,0.0003499,2]
[312486440,1705923031984,-455.38728084,0.0003499,2]
[312486443,1705923032003,-448.87925568,0.0003499,2]
[312486445,1705923032014,-1100.0,0.0003499,2]
[312486447,1705923032026,-2828.33470494,0.0003499,2]
[312486449,1705923032038,-5669.76253763,0.0003499,2]
[312486452,1705923032049,-886.10191071,0.0003499,2]
[312486454,1705923032061,-1645.08389622,0.0003499,2]
[312486456,1705923032070,-800.36832172,0.00035,4]
[312486458,1705923032082,-849.08324174,0.00035,4]
[312486462,1705923032112,-917.62,0.00035,4]
[312486543,1705923037533,-155.0,0.0003,2]
[312486544,1705923037545,-2453.60597149,0.00035,4]
[312486545,1705923037554,-280.30383011,0.00035017,6]
[312486546,1705923037563,-182.20535,0.00035017,6]
[312486547,1705923037573,-240.22479662,0.00035017,6]
[312486548,1705923037582,-374.50218471,0.00035017,6]
[312486549,1705923037591,-243.72510924,0.00035017,6]
[312486550,1705923037600,-562.41200723,0.00035017,6]
[312486551,1705923037610,-178.10989027,0.00035017,6]
[312486552,1705923037619,-304.40397414,0.00035017,6]
[312486553,1705923037628,-304.17136114,0.00035017,6]
[312486554,1705923037638,-156.74552505,0.00035073,2]
[312486555,1705923037651,-3.25447495,0.00035073,2]
[312486556,1705923037663,-160.23,0.00035472,2]
[312486557,1705923037673,-158.05,0.00035567,2]
[312486558,1705923037682,-177.06,0.00035701,2]
[312486559,1705923037691,-155.0,0.00035835,4]
[312486560,1705923037701,-1432.65637378,0.00036,30]
[312486561,1705923037710,-4907.48280639,0.00036,3]
[312486562,1705923037719,-155.35546597,0.00036017,4]
[312486563,1705923037728,-160.23,0.00036049,2]
[312486564,1705923037737,-152.17204999,0.00036099,2]
[312486565,1705923037746,-153.02,0.000361,3]
[312486566,1705923037755,-155.0,0.00036197,4]
[312486567,1705923037765,-2903.08663668,0.00036197,4]
[312486568,1705923037774,-196.82515123,0.00036197,4]
[312486569,1705923037783,-155.35341552,0.00036197,4]
[312486570,1705923037793,-155.1420043,0.00036197,4]
[312486571,1705923037802,-870.18670608,0.00036197,2]
[312486572,1705923037812,-161.23008415,0.00036198,4]
[312486573,1705923037820,-324.54710086,0.00036198,4]
[312486574,1705923037830,-3715.59341737,0.00036198,4]
[312486575,1705923037843,-650.96542092,0.00036198,4]
[312486576,1705923037853,-584.14979696,0.00036198,4]
[312486578,1705923037862,-441.02272604,0.00036198,4]
[312486580,1705923037872,-473.45584329,0.00036198,4]
[312486582,1705923037881,-1709.96186533,0.00036198,4]
[312486584,1705923037890,-310.0,0.00036198,4]
[312486586,1705923037899,-155.0,0.00036198,4]
[312486588,1705923037909,-197.02284836,0.00036198,4]
[312486590,1705923037918,-1064.42182322,0.00036198,4]
[312486592,1705923037927,-1041.72732894,0.00036198,4]
[312486594,1705923037936,-155.39264598,0.00036198,4]
[312486596,1705923037946,-457.43494731,0.00036198,4]
[312486598,1705923037955,-382.00303627,0.00036198,4]
[312486601,1705923037965,-317.72933048,0.00036198,4]
[312486603,1705923037974,-364.22141274,0.00036198,4]
[312486605,1705923037983,-2327.6667133,0.00036198,4]
[312486607,1705923037992,-155.0,0.00036198,4]
[312486609,1705923038002,-940.96622262,0.00036198,4]
[312486611,1705923038011,-234.12299414,0.00036198,4]
[312486613,1705923038021,-344.52203941,0.00036198,4]
[312486615,1705923038031,-314.41237187,0.00036198,4]
[312486617,1705923038040,-155.31832606,0.00036199,4]
[312486619,1705923038049,-1204.08066504,0.00036199,4]
[312486621,1705923038059,-1035.84503972,0.00036199,4]
[312486662,1705923040594,-1768.7772743,0.00036199,4]
[312486663,1705923040864,-14339.28241804,0.00036199,4]
[312486664,1705923040873,-3157.0,0.000362,3]
[312486665,1705923040882,-8056.39648945,0.000362,3]